Workbook

Sheet Contents
B6: Statistical Information for the Insurance Industry for the period 01.01.2022 - 31.12.2022
B8: DOMESTIC BUSINESS
B10: LIFE BUSINESS
B11: 1 | C11: L Premiums | D11: Life business Premiums per Company
B12: 2 | C12: L Premiums incl A&H | D12: Life business Premiums per Company, including A&H from Life Companies
B13: 3 | C13: L Claims | D13: Claims per category
B14: 4 | C14: L New Business | D14: Analysis of Life New Business for Individual Policies
B15: 5 | C15: L in Force Business | D15: Movements of Life Business in Force
B16: 6 | C16: L Technical Account | D16: Technical Account for Life Business
B18: NON LIFE BUSINESS
B19: 1 | C19: NL Premiums | D19: Non Life Written Premiums per Class
B20: 2 | C20: NL Claims | D20: Claims & Claims Ratios per class
B21: 3 | C21: NL Expenses | D21: Expenses & Expenses Ratios per Class
B22: 4 | C22: NL Technical Accounts | D22: Technical Account for Non Life Business
B23: 5 | C23: NL Frequencies | D23: Claim Frequencies per Class
B25: INTERNATIONAL BUSINESS
B27: 1 | C27: International Premiums | D27: International Premiums Written by member companies of IAC

Sheet NL Premiums
B6: TOTAL NON LIFE GROSS WRITTEN PREMIUMS
B7: Including A&H premiums by Life Companies
C9: A&H | D9: MOTOR | E9: MAT | F9: FIRE | G9: LIABILITY | H9: CREDIT | I9: MISC | J9: YEAR 2022 | K9: YEAR 2021 | L9: % Change | M9: MARKET SHARE YEAR 2022 | N9: MARKET SHARE YEAR 2021
B11: ALLIANZ | C11: 5986.34 | D11: 748541.01 | E11: 103052.84 | F11: 2026879.38 | G11: 1893318.43 | H11: 0 | I11: 0 | J11: =SUM(C11:I11) -> 4777778 | K11: 4115826.07 | L11: =(J11-K11)/K11 -> 0.1608308803 | M11: =J11/$J$37 -> 0.008961034721 | N11: =K11/$K$37 -> 0.008032320438
B12: ALTIUS | C12: 5178230.644 | D12: 5029012.23 | E12: 105819.53 | F12: 5717404.49 | G12: 4181561.84 | H12: 0 | I12: 0 | J12: =SUM(C12:I12) -> 20212028.73 | K12: 20575902.9 | L12: -0.01768448112 | M12: 0.03790898013 | N12: =K12/$K$37 -> 0.0401553036
B13: AIG | C13: 121899 | D13: 8527574 | E13: 503381 | F13: 7210554 | G13: 12826926 | H13: 0 | I13: 461139 | J13: 29651473 | K13: 28645836 | L13: 0.03510587019 | M13: 0.05561327443 | N13: =K13/$K$37 -> 0.05590433853
B14: ATLANTIC | C14: 3479086.19 | D14: 12655217.21 | E14: 226333.775 | F14: 3881042.89 | G14: 1441415.04 | H14: 14991.82 | I14: 19105 | J14: 21717191.93 | K14: 21388408.98 | L14: 0.01537201512 | M14: 0.04073201201 | N14: 0.04174096564
B15: COMMERCIAL | C15: 116590.44 | D15: 8656844.43 | E15: 89141.03 | F15: 2799887.01 | G15: 916253.03 | H15: 3091.54 | I15: 75015.04 | J15: 12656822.52 | K15: 12013042.6 | L15: 0.0535900805 | M15: 0.02373869737 | N15: 0.02344428699
B16: COSMOS | C16: 2758138.86 | D16: 10456092.1 | E16: 197792.07 | F16: 2270685.36 | G16: 1062480.33 | H16: 0 | I16: 4188 | J16: 16749376.72 | K16: 18356303.14 | L16: -0.08754085219 | M16: 0.0314145501 | N16: 0.0358236005
B17: ETHNIKI GENERAL | C17: 8600072.18 | D17: 6582400.07 | E17: 77249.71 | F17: 2568395.53 | G17: 984003.27 | H17: 0 | I17: 127665.11 | J17: 18939785.87 | K17: 17769707.39 | L17: 0.06584680627 | M17: 0.03552280554 | N17: 0.03467881816
B18: EUROLIFE | C18: 24161981.87 | D18: 0 | E18: 0 | F18: 0 | G18: 0 | H18: 0 | I18: 0 | J18: 24161981.87 | K18: 23923753.74 | L18: 0.009957807315 | M18: 0.04531737525 | N18: 0.04668886703
B19: EUROSURE | C19: 173809.59 | D19: 6056057.13 | E19: 16185.56 | F19: 1379005.06 | G19: 771853.64 | H19: 0 | I19: 2252.1 | J19: 8399163.08 | K19: 9638043 | L19: -0.1285406093 | M19: 0.01575317899 | N19: 0.01880931032
B20: GENERAL INS. CYPRUS | C20: 1842710.67 | D20: 15260226.28 | E20: 496011.3 | F20: 29444754.67 | G20: 8680422.48 | H20: 27571.38 | I20: 3281528.76 | J20: 59033225.54 | K20: 53336890 | L20: 0.1067991692 | M20: 0.1107206705 | N20: 0.1040906453
B21: HELLENIC | C21: 558101.96 | D21: 0 | E21: 0 | F21: 0 | G21: 0 | H21: 0 | I21: 0 | J21: 558101.96 | K21: 589715.52 | L21: -0.0536081533 | M21: 0.001046756681 | N21: 0.001150870796
B22: HYDRA | C22: 313212 | D22: 10963770 | E22: 11168 | F22: 2093525 | G22: 1083998 | H22: 0 | I22: 0 | J22: 14465673 | K22: 13548580 | L22: 0.06768923385 | M22: 0.0271313146 | N22: 0.02644099488
B23: KENTRIKI | C23: 77674.12 | D23: 2016974.27 | E23: 146794.28 | F23: 1774074 | G23: 696236.38 | H23: 0 | I23: 59929.7 | J23: 4771682.75 | K23: 4663222.53 | L23: 0.02325864127 | M23: 0.008949602682 | N23: 0.009100602648
B24: CNP ASFALISTIKI | C24: 1675305.08 | D24: 26827815.98 | E24: 723798.51 | F24: 21770211.45 | G24: 9992468.06 | H24: 81894.05 | I24: 1786233.1 | J24: 62857726.23 | K24: 58933102.14 | L24: 0.06659456142 | M24: 0.1178937714 | N24: 0.115012042
B25: CNP CYPRIALIFE | C25: 16513860.46 | D25: 0 | E25: 0 | F25: 0 | G25: 0 | H25: 0 | I25: 0 | J25: 16513860.46 | K25: 16780537.73 | L25: -0.01589205731 | M25: 0.03097282397 | N25: 0.03274838486
B26: LUMEN | C26: 1476 | D26: 1599351 | E26: 8700 | F26: 1203082 | G26: 597743 | H26: 0 | I26: 0 | J26: 3410352 | K26: 2957247.44 | L26: 0.1532183455 | M26: 0.006396337938 | N26: 0.005771273773
B27: METLIFE | C27: 22737054.69 | D27: 0 | E27: 0 | F27: 0 | G27: 0 | H27: 0 | I27: 0 | J27: 22737054.69 | K27: 23289928.15 | L27: -0.02373873618 | M27: 0.04264483124 | N27: 0.04545191237
B28: MINERVA | C28: 724558 | D28: 12178120 | E28: 32894 | F28: 1407326 | G28: 1315698 | H28: 0 | I28: 96590 | J28: =SUM(C28:I28) -> 15755186 | K28: 15027026.32 | L28: 0.04845667163 | M28: 0.02954988046 | N28: 0.02932628556
B29: PANCYPRIAN | C29: 868139.24 | D29: 14851715.4 | E29: 338322.73 | F29: 17746933.28 | G29: 3372998.87 | H29: 0 | I29: 988724.71 | J29: 38166834.23 | K29: 37013757.26 | L29: 0.03115265932 | M29: 0.07158439064 | N29: 0.07223491806
B30: PRIME | C30: 582751.94 | D30: 7967547 | E30: 62734.6 | F30: 1974794.61 | G30: 905369.18 | H30: 0 | I30: 756626.53 | J30: =SUM(C30:I30) -> 12249823.86 | K30: 11584443.03 | L30: 0.05743744678 | M30: 0.0229753448 | N30: 0.02260784516
B31: PROGRESSIVE | C31: 36157.73 | D31: 2999043.31 | E31: 45745.49 | F31: 1955561.09 | G31: 884604.43 | H31: 19823.29 | I31: 108760 | J31: 6049695.34 | K31: 5400837.7 | L31: 0.1201401849 | M31: 0.01134659877 | N31: 0.01054010988
B32: ROYAL CROWN | C32: 42898 | D32: 5310278 | E32: 183882 | F32: 3744491 | G32: 1272326 | H32: 0 | I32: 98282 | J32: 10652157 | K32: 10000907 | L32: 0.0651190937 | M32: 0.01997881625 | N32: 0.01951746462
B33: TRUST | C33: 4005886 | D33: 22261155 | E33: 422435 | F33: 8033482 | G33: 7096021 | H33: 0 | I33: 222347 | J33: 42041326 | K33: 38742826 | L33: 0.08513834277 | M33: 0.07885125303 | N33: 0.0756093158
B34: UNIVERSAL | C34: 39588331.91 | D34: 0 | E34: 0 | F34: 0 | G34: 0 | H34: 0 | I34: 0 | J34: 39588331.91 | K34: 39921482.46 | L34: -0.008345144756 | M34: 0.07425050239 | N34: 0.07790954574
B35: YDROGIOS | C35: 1620386.68 | D35: 7740690.6 | E35: 136814.51 | F35: 3464726.79 | G35: 3910001.37 | H35: 5133.66 | I35: 0 | J35: =SUM(C35:I35) -> 16877753.61 | K35: 15910258.39 | L35: 0.06080952278 | M35: 0.03165532934 | N35: =K35/$K$37 -> 0.03104997428
B36: INTERAMERICAN | C36: 48739.98 | D36: 9462875.11 | E36: 0 | F36: 264979.69 | G36: 1447.17 | H36: 0 | I36: 400151.56 | J36: =SUM(C36:I36) -> 10178193.51 | K36: 8280516.5 | L36: 0.229173749 | M36: 0.01908986676 | N36: 0.01616000307
B37: TOTAL YEAR 2022 | C37: =SUM(C11:C36) -> 135833039.6 | D37: 198151300.1 | E37: 3928255.935 | F37: 122731795.3 | G37: 63887145.52 | H37: 152505.74 | I37: 8488537.61 | J37: 533172579.8 | K37: 512408102 | L37: 0.04052332065 | M37: =SUM(M11:M36) -> 1 | N37: =SUM(N11:N36) -> 1
B38: TOTAL YEAR 2021 | C38: 136616130.7 | D38: 189364720.7 | E38: 3272147.829 | F38: 115173189.8 | G38: 60001827.01 | H38: 154869.71 | I38: 7825216.28 | J38: =SUM(C38:I38) -> 512408102
B39: % Change YEAR 2021/22 | C39: =C37/C38-1 -> -0.005732054988 | D39: 0.04640029806 | E39: 0.2005129781 | F39: 0.06562816882 | G39: 0.06475333673 | H39: -0.01526425019 | I39: 0.08476715611 | J39: 0.04052332065
B40: % Change YEAR 2020/21 | C40: -0.1103701138 | D40: 0.0404124315 | E40: -0.04171896413 | F40: 0.04529962516 | G40: 0.1675071412 | H40: -0.004571126955 | I40: 0.2721250126 | J40: 0.0109240997
B42: Σημειώσεις:
B43: 1. Τα πιο πάνω δεδομένα αφορούν μόνο τις εργασίες των εταιρειών-μελών του ΣΑΕΚ στην εγχώρια αγορά. Οι εταιρείες-μέλη του ΣΑΕΚ αντιπροσωπεύουν περίπου το 98% των συνολικών
B44: ασφαλίστρων στην εγχώρια αγορά.
B47: Notes:
B48: 1. The above data reflects to the local insurance business by IAC member firms. IAC members firms represent approx 98% of the local GWP.
B58: TOTAL NON LIFE GROSS WRITTEN PREMIUMS
B59: Excluding A&H premiums by Life Companies
C61: A&H | D61: MOTOR | E61: MAT | F61: FIRE | G61: LIABILITY | H61: CREDIT | I61: MISC | J61: YEAR 2022 | K61: YEAR 2021 | L61: % Change | M61: MARKET SHARE YEAR 2022 | N61: MARKET SHARE YEAR 2021
B63: ALLIANZ | C63: 5986.34 | D63: 748541.01 | E63: 103052.84 | F63: 2026879.38 | G63: 1893318.43 | H63: 0 | I63: 0 | J63: =SUM(C63:I63) -> 4777778 | K63: 4115826.07 | L63: =(J63-K63)/K63 -> 0.1608308803 | M63: =J63/$J$84 -> 0.01112111419 | N63: =K63/$K$84 -> 0.0100902157
B64: ALTIUS | C64: 5178230.644 | D64: 5029012.23 | E64: 105819.53 | F64: 5717404.49 | G64: 4181561.84 | H64: 0 | I64: 0 | J64: =SUM(C64:I64) -> 20212028.73 | K64: 20575902.9 | L64: -0.01768448112 | M64: =J64/$J$84 -> 0.04704703308 | N64: =K64/$K$84 -> 0.0504431662
B65: AIG | C65: 121899 | D65: 8527574 | E65: 503381 | F65: 7210554 | G65: 12826926 | H65: 0 | I65: 461139 | J65: 29651473 | K65: 28645836 | L65: 0.03510587019 | M65: 0.06901899109 | N65: 0.07022713283
B66: ATANTIC | C66: 3479086.19 | D66: 12655217.21 | E66: 226333.775 | F66: 3881042.89 | G66: 1441415.04 | H66: 14991.82 | I66: 19105 | J66: 21717191.93 | K66: 21388408.98 | L66: 0.01537201512 | M66: 0.05055056374 | N66: 0.05243507777
B67: COMMERCIAL | C67: 116590.44 | D67: 8656844.43 | E67: 89141.03 | F67: 2799887.01 | G67: 916253.03 | H67: 3091.54 | I67: 75015.04 | J67: 12656822.52 | K67: 12013042.6 | L67: 0.0535900805 | M67: 0.02946096879 | N67: 0.02945075642
B68: COSMOS | C68: 2758138.86 | D68: 10456092.1 | E68: 197792.07 | F68: 2270685.36 | G68: 1062480.33 | H68: 0 | I68: 4188 | J68: 16749376.72 | K68: 18356303.14 | L68: -0.08754085219 | M68: 0.03898710471 | N68: 0.04500167281
B69: ETHNIKI GENERAL | C69: 8600072.18 | D69: 6582400.07 | E69: 77249.71 | F69: 2568395.53 | G69: 984003.27 | H69: 0 | I69: 127665.11 | J69: 18939785.87 | K69: 17769707.39 | L69: 0.06584680627 | M69: 0.04408566523 | N69: 0.04356359512
B70: EUROSURE | C70: 173809.59 | D70: 6056057.13 | E70: 16185.56 | F70: 1379005.06 | G70: 771853.64 | H70: 0 | I70: 2252.1 | J70: 8399163.08 | K70: 9638043 | L70: -0.1285406093 | M70: 0.01955052155 | N70: 0.0236282902
B71: GENERAL INS. CYPRUS | C71: 1842710.67 | D71: 15260226.28 | E71: 496011.3 | F71: 29444754.67 | G71: 8680422.48 | H71: 27571.38 | I71: 3281528.76 | J71: 59033225.54 | K71: 53336890 | L71: 0.1067991692 | M71: 0.1374101606 | N71: 0.13075886
B72: HYDRA | C72: 313212 | D72: 10963770 | E72: 11168 | F72: 2093525 | G72: 1083998 | H72: 0 | J72: 14465673 | K72: 13548580 | L72: 0.06768923385 | M72: 0.03367138475 | N72: 0.03321522637
B73: KENTRIKI | C73: 77674.12 | D73: 2016974.27 | E73: 146794.28 | F73: 1774074 | G73: 696236.38 | H73: 0 | I73: 59929.7 | J73: 4771682.75 | K73: 4663222.53 | L73: 0.02325864127 | M73: 0.01110692643 | N73: 0.01143219378
B74: CNP ASFALISTIKI | C74: 1675305.08 | D74: 26827815.98 | E74: 723798.51 | F74: 21770211.45 | G74: 9992468.06 | H74: 81894.05 | I74: 1786233.1 | J74: 62857726.23 | K74: 58933102.14 | L74: 0.06659456142 | M74: 0.1463123551 | N74: 0.1444783386
B75: LUMEN | C75: 1476 | D75: 1599351 | E75: 8700 | F75: 1203082 | G75: 597743 | H75: 0 | I75: 0 | J75: 3410352 | K75: 2957247.44 | L75: 0.1532183455 | M75: 0.007938190939 | N75: 0.007249884723
B76: MINERVA | C76: 724558 | D76: 12178120 | E76: 32894 | F76: 1407326 | G76: 1315698 | H76: 0 | I76: 96590 | J76: 15755186 | K76: 15027026.32 | L76: 0.04845667163 | M76: 0.03667295187 | N76: 0.03683973383
B77: PANCYPRIAN | C77: 868139.24 | D77: 14851715.4 | E77: 338322.73 | F77: 17746933.28 | G77: 3372998.87 | H77: 0 | I77: 988724.71 | J77: 38166834.23 | K77: 37013757.26 | L77: 0.03115265932 | M77: 0.08883998416 | N77: 0.09074163686
B78: PRIME | C78: 582751.94 | D78: 7967547 | E78: 62734.6 | F78: 1974794.61 | G78: 905369.18 | H78: 0 | I78: 756626.53 | J78: 12249823.86 | K78: 11584443.03 | L78: 0.05743744678 | M78: 0.02851360821 | N78: 0.02840001665
B79: PROGRESSIVE | C79: 36157.73 | D79: 2999043.31 | E79: 45745.49 | F79: 1955561.09 | G79: 884604.43 | H79: 19823.29 | I79: 108760 | J79: 6049695.34 | K79: 5400837.7 | L79: 0.1201401849 | M79: 0.01408172433 | N79: 0.01324050541
B80: ROYAL CROWN | C80: 42898 | D80: 5310278 | E80: 183882 | F80: 3744491 | G80: 1272326 | H80: 0 | I80: 98282 | J80: 10652157 | K80: 10000907 | L80: 0.0651190937 | M80: 0.02479475907 | N80: 0.02451787493
B81: TRUST | C81: 4005886 | D81: 22261155 | E81: 422435 | F81: 8033482 | G81: 7096021 | H81: 0 | I81: 222347 | J81: 42041326 | K81: 38742826 | L81: 0.08513834277 | M81: 0.09785854162 | N81: 0.0949805615
B82: YDROGIOS | C82: 1620386.68 | D82: 7740690.6 | E82: 136814.51 | F82: 3464726.79 | G82: 3910001.37 | H82: 5133.66 | I82: 0 | J82: 16877753.61 | K82: 15910258.39 | L82: 0.06080952278 | M82: 0.03928592438 | N82: =K82/$K$84 -> 0.03900503478
B83: INTERAMERICAN | C83: 48739.98 | D83: 9462875.11 | E83: 0 | F83: 264979.69 | G83: 1447.17 | H83: 0 | I83: 400151.56 | J83: 10178193.51 | K83: 8280516.5 | L83: 0.229173749 | M83: 0.02369152612 | N83: 0.02030022556
B84: TOTAL YEAR 2022 | C84: =SUM(C63:C83) -> 32273708.68 | D84: 198151300.1 | E84: 3928255.935 | F84: 122731795.3 | G84: 63887145.52 | H84: 152505.74 | I84: 8488537.61 | J84: 429613248.9 | K84: =SUM(K63:K83) -> 407902684.4 | L84: 0.05322486309 | M84: =SUM(M63:M83) -> 1 | N84: =SUM(N63:N83) -> 1
B85: TOTAL YEAR 2021 | C85: 32110713.15 | D85: 189364720.7 | E85: 3272147.829 | F85: 115173189.8 | G85: 60001827.01 | H85: 154869.71 | I85: 7825216.28 | J85: =SUM(C85:I85) -> 407902684.4
B86: % Change YEAR 2021/22 | C86: =C84/C85-1 -> 0.005076048382 | D86: =D84/D85-1 -> 0.04640029806 | E86: =E84/E85-1 -> 0.2005129781 | F86: 0.06562816882 | G86: 0.06475333673 | H86: -0.01526425019 | I86: 0.08476715611 | J86: =J84/J85-1 -> 0.05322486309
B87: % Change YEAR 2020/21 | C87: -0.1331945721 | D87: 0.0404124315 | E87: -0.04171896413 | F87: 0.04529962516 | G87: 0.1675071412 | H87: -0.004571126955 | I87: 0.2721250126 | J87: 0.04496451391
B89: Σημειώσεις:
B90: 1. Τα πιο πάνω δεδομένα αφορούν μόνο τις εργασίες των εταιρειών-μελών του ΣΑΕΚ στην εγχώρια αγορά. Οι εταιρείες-μέλη του ΣΑΕΚ αντιπροσωπεύουν περίπου το 98% των συνολικών
B91: ασφαλίστρων στην εγχώρια αγορά.
B94: Notes:
B95: 1. The above data reflects to the local insurance business by IAC member firms. IAC members firms represent approx 98% of the local GWP.

Sheet NL Claims
B6: NON LIFE GROSS CLAIMS
D9: A&H | E9: MOTOR | F9: MAT | G9: FIRE | H9: LIABILITY | I9: CREDIT | J9: MISC | K9: TOTAL
B10: GROSS CLAIMS INCURED | C10: YEAR 2022 | D10: 66385624.09 | E10: 130492525.8 | F10: 946495.1473 | G10: 24894913.23 | H10: 12031803.36 | I10: -52473.29961 | J10: 658806.5603 | K10: =SUM(D10:J10) -> 235357694.9
C11: YEAR 2021 | D11: 63513156.35 | E11: 118954577.5 | F11: 344669.8633 | G11: 20474404.41 | H11: 15291460.04 | I11: -41155.19742 | J11: 1085132.035 | K11: =SUM(D11:J11) -> 219622245
B12: % Change | D12: =D10/D11-1 -> 0.04522634221 | E12: =E10/E11-1 -> 0.09699457174 | F12: 1.74609198 | G12: 0.2159041474 | H12: -0.2131684396 | I12: 0.2750102757 | J12: -0.3928788947 | K12: 0.07164779645
B13: GROSS PREMIUS EARNED | C13: YEAR 2022 | D13: 134966861.2 | E13: 191529843.7 | F13: 3694465.763 | G13: 118958358.9 | H13: 62215078.48 | I13: 148881.3021 | J13: 8225735.511 | K13: =SUM(D13:J13) -> 519739224.8
C14: YEAR 2021 | D14: 137107284.4 | E14: 183599963.4 | F14: 3233174.856 | G14: 112663016 | H14: 55184626.05 | I14: 156535.1397 | J14: 7061887.715 | K14: =SUM(D14:J14) -> 499006487.5
B15: % Change | D15: =D13/D14-1 -> -0.01561130176 | E15: 0.04319107783 | F15: 0.1426742839 | G15: 0.0558776351 | H15: 0.1273987509 | I15: -0.04889533203 | J15: 0.1648068962 | K15: 0.04154803159
B16: GROSS CLAIMS RATIO | C16: YEAR 2022 | D16: =D10/D13 -> 0.4918661034 | E16: 0.6813169335 | F16: 0.2561926969 | G16: 0.2092741819 | H16: 0.1933904715 | I16: -0.3524505689 | J16: 0.08009090001 | K16: 0.4528380458
C17: YEAR 2021 | D17: 0.4632369217 | E17: 0.647900878 | F17: 0.1066041519 | G17: 0.1817313714 | H17: 0.2770963786 | I17: -0.2629134743 | J17: 0.1536603354 | K17: 0.4401190174
B19: Σημειώσεις:
B20: 1. Τα πιο πάνω δεδομένα αφορούν μόνο τις εργασίες των εταιρειών-μελών του ΣΑΕΚ στην εγχώρια αγορά. Οι εταιρείες-μέλη του ΣΑΕΚ αντιπροσωπεύουν περίπου το 98% των συνολικών
B21: ασφαλίστρων στην εγχώρια αγορά.
B24: Notes:
B25: 1. The above data reflects to the local insurance business by IAC member firms. IAC members firms represent approx 98% of the local GWP.
B35: NON LIFE NET CLAIMS INCURRED
D38: A&H | E38: MOTOR | F38: MAT | G38: FIRE | H38: LIABILITY | I38: CREDIT | J38: MISC | K38: TOTAL
B39: NET CLAIMS INCURED | C39: YEAR 2022 | D39: 42190288.43 | E39: 121819838.1 | F39: 584523.6423 | G39: 16306173.47 | H39: 10885956.82 | I39: -22788.78961 | J39: 556457.2325 | K39: =SUM(D39:J39) -> 192320448.9
C40: YEAR 2021 | D40: 39124025.05 | E40: 113985829.3 | F40: 132850.1966 | G40: 12397364.52 | H40: 12100990.14 | I40: -29719.94742 | J40: -665547.0576 | K40: =SUM(D40:J40) -> 177045792.2
B41: % Change | D41: =D39/D40-1 -> 0.07837290176 | E41: 0.06872791837 | F41: 3.39987036 | G41: 0.3152935401 | H41: -0.1004077605 | I41: -0.2332156821 | J41: -1.83608999 | K41: 0.08627517477
B42: NET PREMIUMS EARNED | C42: YEAR 2022 | D42: 83124993.77 | E42: 176589928.3 | F42: 2047066.176 | G42: 46435419.26 | H42: 46286291.25 | I42: 73445.67237 | J42: 2011236.196 | K42: =SUM(D42:J42) -> 356568380.6
C43: YEAR 2021 | D43: 82969932.35 | E43: 168807417.4 | F43: 1945812.217 | G43: 46280246.45 | H43: 41612012.41 | I43: 77024.79485 | J43: 1857191.119 | K43: =SUM(D43:J43) -> 343549636.7
B44: % Change | D44: =D42/D43-1 -> 0.001868886933 | E44: 0.04610289668 | F44: 0.05203686072 | G44: 0.003352895114 | H44: 0.1123300355 | I44: -0.04646714716 | J44: 0.08294519369 | K44: 0.03789479747
B45: NET CLAIMS RATIO | C45: YEAR 2022 | D45: =D39/D42 -> 0.50755238 | E45: 0.6898459002 | F45: 0.285542133 | G45: 0.3511580971 | H45: 0.2351874934 | I45: -0.3102809038 | J45: 0.2766742333 | K45: 0.5393648436
C46: YEAR 2021 | D46: 0.471544618 | E46: 0.6752418291 | F46: 0.0682749319 | G46: 0.2678759399 | H46: 0.2908052131 | I46: -0.3858490954 | J46: -0.3583621798 | K46: =K40/K43 -> 0.5153426849
B48: Σημειώσεις:
B49: 1. Τα πιο πάνω δεδομένα αφορούν μόνο τις εργασίες των εταιρειών-μελών του ΣΑΕΚ στην εγχώρια αγορά. Οι εταιρείες-μέλη του ΣΑΕΚ αντιπροσωπεύουν περίπου το 98% των συνολικών
B50: ασφαλίστρων στην εγχώρια αγορά.
B53: Notes:
B54: 1. The above data reflects to the local insurance business by IAC member firms. IAC members firms represent approx 98% of the local GWP.

Sheet NL Expenses
B6: NON LIFE EXPENSES
E8: A&H | F8: MOTOR | G8: MAT | H8: FIRE | I8: LIABILITY | J8: CREDIT | K8: MISC | L8: TOTAL
B9: Maintainance/Renewal | D9: YEAR 2022 | E9: 13528037.91 | F9: 23915667.26 | G9: 546344.1978 | H9: 11084680.7 | I9: 6670344.903 | J9: 67498.57162 | K9: 1154288.426 | L9: =SUM(E9:K9) -> 56966861.97
D10: YEAR 2021 | E10: 10133090.65 | F10: 25146102.42 | G10: 495379.5859 | H10: 10874301.57 | I10: 6536105.765 | J10: 53689.81693 | K10: 484092.2788 | L10: =SUM(E10:K10) -> 53722762.09
B11: % Change | E11: =E9/E10-1 -> 0.3350357134 | F11: =F9/F10-1 -> -0.04893144648 | G11: 0.1028799195 | H11: 0.01934645015 | I11: 0.02053809141 | J11: 0.2571950413 | K11: 1.384438828 | L11: 0.06038594722
B12: Commissions & other Acq. | D12: YEAR 2022 | E12: 23735302.87 | F12: 49838024.86 | G12: 711566.2249 | H12: 23508234.38 | I12: 12083328.75 | J12: 46401.92176 | K12: 1735235.832 | L12: =SUM(E12:K12) -> 111658094.8
D13: YEAR 2021 | E13: 23491754.19 | F13: 49427451.94 | G13: 625999.0185 | H13: 22470374.51 | I13: 10754491.09 | J13: 46530.96953 | K13: 2062626.956 | L13: =SUM(E13:K13) -> 108879228.7
B14: % Change | E14: =E12/E13-1 -> 0.01036741142 | F14: 0.008306576568 | G14: 0.1366890425 | H14: 0.04618792018 | I14: 0.1235611849 | J14: -0.002773373781 | K14: -0.1587253202 | L14: 0.02552246365
B15: Reins. Commissions & Profit Commissions | D15: YEAR 2022 | E15: 18983803.53 | F15: 3006704.412 | G15: 453212.9018 | H15: 19222503.73 | I15: 2049226.647 | J15: 26164.38 | K15: 789298.7809 | L15: =SUM(E15:K15) -> 44530914.38
D16: YEAR 2021 | E16: 16996447.37 | F16: 1592309.41 | G16: 444748.1039 | H16: 18459046.79 | I16: 2042943.35 | J16: 28140.44 | K16: 792027.8592 | L16: =SUM(E16:K16) -> 40355663.33
B17: % Change | E17: =E15/E16-1 -> 0.1169277388 | F17: 0.8882664345 | G17: 0.01903279138 | H17: 0.04135949972 | I17: 0.003075610157 | J17: -0.07022136114 | K17: -0.00344568473 | L17: 0.1034613413
B18: GROSS Expense Ratio | D18: YEAR 2022 | E18: =E9/'NL Claims'!D13 -> 0.1002322925 | F18: =F9/'NL Claims'!E13 -> 0.1248665315 | G18: =G9/'NL Claims'!F13 -> 0.1478817867 | H18: =H9/'NL Claims'!G13 -> 0.09318118376 | I18: =I9/'NL Claims'!H13 -> 0.1072142809 | J18: =J9/'NL Claims'!I13 -> 0.4533717175 | K18: =K9/'NL Claims'!J13 -> 0.1403264698 | L18: =L9/'NL Claims'!K13 -> 0.1096066243
D19: YEAR 2021 | E19: 0.07390628953 | F19: 0.1369613695 | G19: 0.153217691 | H19: 0.09652059702 | I19: 0.1184407005 | J19: 0.34298891 | K19: 0.06854998243 | L19: =L10/'NL Claims'!K14 -> 0.1076594462
B21: GROSS Acquisition Cost Ratio | D21: YEAR 2022 | E21: =E12/'NL Claims'!D13 -> 0.1758602272 | F21: =F12/'NL Claims'!E13 -> 0.2602102309 | G21: =G12/'NL Claims'!F13 -> 0.1926032803 | H21: =H12/'NL Claims'!G13 -> 0.1976173394 | I21: =I12/'NL Claims'!H13 -> 0.1942186532 | J21: =J12/'NL Claims'!I13 -> 0.31167058 | K21: =K12/'NL Claims'!J13 -> 0.2109520577 | L21: =L12/'NL Claims'!K13 -> 0.2148348431
D22: YEAR 2021 | E22: 0.1713384836 | F22: 0.2692127549 | G22: 0.1936174338 | H22: 0.1994476565 | I22: 0.1948820144 | J22: 0.2972557448 | K22: 0.2920786961 | L22: =L13/'NL Claims'!K14 -> 0.2181920103
B24: NET Expense Ratio | D24: YEAR 2022 | E24: =E9/'NL Claims'!D42 -> 0.1627433254 | F24: =F9/'NL Claims'!E42 -> 0.1354305281 | G24: =G9/'NL Claims'!F42 -> 0.2668913219 | H24: =H9/'NL Claims'!G42 -> 0.2387117609 | I24: =I9/'NL Claims'!H42 -> 0.1441105935 | J24: =J9/'NL Claims'!I42 -> 0.9190272134 | K24: =K9/'NL Claims'!J42 -> 0.573919875 | L24: =L9/'NL Claims'!K42 -> 0.1597641997
D25: YEAR 2021 | E25: 0.1221296724 | F25: 0.1489632553 | G25: 0.2545875607 | H25: 0.2349663712 | I25: 0.1570725708 | J25: 0.6970458933 | K25: 0.2606582995 | L25: =L10/'NL Claims'!K43 -> 0.1563755462
B27: NET Acquisition Cost Ratio | D27: YEAR 2022 | E27: =(E12-E15)/'NL Claims'!D42 -> 0.05716089859 | F27: =(F12-F15)/'NL Claims'!E42 -> 0.2651981395 | G27: =(G12-G15)/'NL Claims'!F42 -> 0.1262066298 | H27: =(H12-H15)/'NL Claims'!G42 -> 0.09229443205 | I27: =(I12-I15)/'NL Claims'!H42 -> 0.2167834543 | J27: =(J12-J15)/'NL Claims'!I42 -> 0.2755443733 | K27: =(K12-K15)/'NL Claims'!J42 -> 0.4703261869 | L27: =(L12-L15)/'NL Claims'!K42 -> 0.1882589262
D28: YEAR 2021 | E28: 0.07828506825 | F28: 0.2833710939 | G28: 0.09314923251 | H28: 0.08667472694 | I28: 0.2093517529 | J28: 0.2387611622 | K28: 0.6841509654 | L28: =(L13-L16)/'NL Claims'!K43 -> 0.1994575398
B30: Σημειώσεις:
B31: 1. Τα πιο πάνω δεδομένα αφορούν μόνο τις εργασίες των εταιρειών-μελών του ΣΑΕΚ στην εγχώρια αγορά. Οι εταιρείες-μέλη του ΣΑΕΚ αντιπροσωπεύουν περίπου το 98% των συνολικών
B32: ασφαλίστρων στην εγχώρια αγορά.
B35: Notes:
B36: 1. The above data reflects to the local insurance business by IAC member firms. IAC members firms represent approx 98% of the local GWP.

Sheet NL Technical Accounts
B7: NON LIFE TECHNICAL ACCOUNTS
D10: A&H | E10: MOTOR | F10: MAT | G10: FIRE | H10: LIABILITY | I10: CREDIT | J10: MISC | K10: YEAR 2022 | L10: YEAR 2021 | M10: % Change
B11: Premiums
B12: Gross Written Premiums | D12: 135833039.6 | E12: 198151300.1 | F12: 3928255.935 | G12: 122732076.8 | H12: 63887153.81 | I12: 152505.74 | J12: 8488627.51 | K12: =SUM(D12:J12) -> 533172959.5 | L12: 512408102 | M12: =K12/L12-1 -> 0.04052406168
B13: Gross Premiums earned | D13: 134966861.2 | E13: 191529843.7 | F13: 3694465.763 | G13: 118958358.9 | H13: 62215078.48 | I13: 148881.3021 | J13: 8225735.511 | K13: =SUM(D13:J13) -> 519739224.8 | L13: 499006487.5 | M13: =K13/L13-1 -> 0.04154803159
B14: Reinsurance premiums | D14: 53405770.55 | E14: 17339774.81 | F14: 1722275.217 | G14: 74567971.78 | H14: 15986704.98 | I14: 78839.99 | J14: 6544687.16 | K14: =SUM(D14:J14) -> 169646024.5 | L14: 159775974.3 | M14: 0.06177430741
B15: Net Written Premiums | D15: 82427269.02 | E15: 180811525.3 | F15: 2205980.718 | G15: 48164105.04 | H15: 47900448.83 | I15: 73665.75 | J15: 1943940.35 | K15: =SUM(D15:J15) -> 363526935 | L15: 352632127.7 | M15: 0.03089567434
B16: Net Premiums earned | D16: 83124993.77 | E16: 176589928.3 | F16: 2047066.176 | G16: 46435419.26 | H16: 46286291.25 | I16: 73445.67237 | J16: 2011236.196 | K16: =SUM(D16:J16) -> 356568380.6 | L16: 343549636.7 | M16: 0.03789479747
B17: Claims
B18: Gross Claims incured | D18: 66385624.09 | E18: 130492525.8 | F18: 946495.1473 | G18: 24894913.23 | H18: 12031803.36 | I18: -52473.29961 | J18: 658806.5603 | K18: =SUM(D18:J18) -> 235357694.9 | L18: 219622245 | M18: 0.07164779645
B19: Net Claims Incurred | D19: 42190288.43 | E19: 121819838.1 | F19: 584523.6423 | G19: 16306173.47 | H19: 10885956.82 | I19: -22788.78961 | J19: 556457.2325 | K19: =SUM(D19:J19) -> 192320448.9 | L19: 177045792.2 | M19: 0.08627517477
B20: Expenses
B21: Operating Expenses | D21: 13528037.91 | E21: 23915667.26 | F21: 546344.1978 | G21: 11084680.7 | H21: 6670344.903 | I21: 67498.57162 | J21: 1154288.426 | K21: =SUM(D21:J21) -> 56966861.97 | L21: 53722762.09 | M21: 0.06038594722
B22: Commission Payable & Acquisition costs | D22: 23735302.87 | E22: 49838024.86 | F22: 711566.2249 | G22: 23508234.38 | H22: 12083328.75 | I22: 46401.92176 | J22: 1735235.832 | K22: =SUM(D22:J22) -> 111658094.8 | L22: 108879228.7 | M22: 0.02552246365
B23: Total Expenses | D23: 37263340.78 | E23: 73753692.11 | F23: 1257910.423 | G23: 34592915.08 | H23: 18753673.65 | I23: 113900.4934 | J23: 2889524.258 | K23: =SUM(D23:J23) -> 168624956.8 | L23: 162601990.8 | M23: 0.037041158
B24: Reinsurance Commissions and profit participations | D24: 18983803.53 | E24: 3006704.412 | F24: 453212.9018 | G24: 19222503.73 | H24: 2049226.647 | I24: 26164.38 | J24: 789298.7809 | K24: =SUM(D24:J24) -> 44530914.38 | L24: 40355663.33 | M24: 0.1034613413
B25: Other Income
B26: Policy Fees | D26: 1341166.367 | E26: 14304406.4 | F26: 90020.57308 | G26: 4899747.213 | H26: 1263370.042 | I26: 1828.831749 | J26: 72087.28603 | K26: =SUM(D26:J26) -> 21972626.72 | L26: 21509593.68 | M26: 0.02152681468
B27: Other Expenses
B28: Underwriting Results YEAR 2022 | D28: =D16-D19-D23+D24+D25+D26+D27 -> 23996334.46 | E28: =E16-E19-E23+E24+E25+E26+E27 -> -1672491.037 | F28: 747865.5861 | G28: 19658581.66 | H28: 19959257.47 | I28: 10327.18035 | J28: =J16-J19-J23+J24+J25+J26+J27 -> -573359.2278 | K28: =K16-K19-K23+K24+K25+K26+K27 -> 62126516.09 | L28: 65767110.79 | M28: -0.05535585572
B29: Underwriting Results YEAR 2021 | D29: 28499357.23 | E29: -4183542.343 | F29: 1217164.362 | G29: 23869392.97 | H29: 15493257.85 | I29: 36414.60185 | J29: 835066.1158
B32: FINANCIAL INDICATORS | C32: A & H | E32: MOTOR | G32: MAT | I32: FIRE | K32: LIABILITY | M32: CREDIT | O32: OTHER | Q32: TOTAL
C34: YEAR 2022 | D34: YEAR 2021 | E34: YEAR 2022 | F34: YEAR 2021 | G34: YEAR 2022 | H34: YEAR 2021 | I34: YEAR 2022 | J34: YEAR 2021 | K34: YEAR 2022 | L34: YEAR 2021 | M34: YEAR 2022 | N34: YEAR 2021 | O34: YEAR 2022 | P34: YEAR 2021 | Q34: YEAR 2022 | R34: YEAR 2021
B35: Gross Claims ratio | C35: =D18/D13 -> 0.4918661034 | D35: 0.4632369217 | E35: =E18/E13 -> 0.6813169335 | F35: 0.647900878 | G35: =F18/F13 -> 0.2561926969 | H35: 0.1066041519 | I35: =G18/G13 -> 0.2092741819 | J35: 0.1817313714 | K35: =H18/H13 -> 0.1933904715 | L35: 0.2770963786 | M35: =I18/I13 -> -0.3524505689 | N35: -0.2629134743 | O35: =J18/J13 -> 0.08009090001 | P35: 0.1536603354 | Q35: =K18/K13 -> 0.4528380458 | R35: 0.4401190174
B36: Gross Acquisition Cost Ratio | C36: =D22/D13 -> 0.1758602272 | D36: 0.1713384836 | E36: =E22/E13 -> 0.2602102309 | F36: 0.2692127549 | G36: =F22/F13 -> 0.1926032803 | H36: 0.1936174338 | I36: =G22/G13 -> 0.1976173394 | J36: 0.1994476565 | K36: =H22/H13 -> 0.1942186532 | L36: 0.1948820144 | M36: =I22/I13 -> 0.31167058 | N36: 0.2972557448 | O36: =J22/J13 -> 0.2109520577 | P36: 0.2920786961 | Q36: =K22/K13 -> 0.2148348431 | R36: 0.2181920103
B37: Gross Expense Ratio | C37: =D21/D13 -> 0.1002322925 | D37: 0.07390628953 | E37: =E21/E13 -> 0.1248665315 | F37: 0.1369613695 | G37: =F21/F13 -> 0.1478817867 | H37: 0.153217691 | I37: =G21/G13 -> 0.09318118376 | J37: 0.09652059702 | K37: =H21/H13 -> 0.1072142809 | L37: 0.1184407005 | M37: =I21/I13 -> 0.4533717175 | N37: 0.34298891 | O37: =J21/J13 -> 0.1403264698 | P37: 0.06854998243 | Q37: =K21/K13 -> 0.1096066243 | R37: 0.1076594462
B38: Gross Combined Ratio | C38: =C35+C36+C37 -> 0.7679586232 | D38: 0.7084816948 | E38: =E35+E36+E37 -> 1.066393696 | F38: 1.054075002 | G38: =G35+G36+G37 -> 0.5966777639 | H38: 0.4534392766 | I38: =I35+I36+I37 -> 0.500072705 | J38: 0.4776996249 | K38: =K37+K36+K35 -> 0.4948234056 | L38: 0.5904190935 | M38: =M37+M36+M35 -> 0.4125917286 | N38: 0.3773311805 | O38: =O37+O36+O35 -> 0.4313694275 | P38: 0.5142890139 | Q38: =Q37+Q36+Q35 -> 0.7772795132 | R38: 0.7659704739
B39: Net Claims Ratio | C39: =D19/D16 -> 0.50755238 | D39: 0.471544618 | E39: =E19/E16 -> 0.6898459002 | F39: 0.6752418291 | G39: =F19/F16 -> 0.285542133 | H39: 0.0682749319 | I39: =G19/G16 -> 0.3511580971 | J39: 0.2678759399 | K39: =H19/H16 -> 0.2351874934 | L39: 0.2908052131 | M39: =I19/I16 -> -0.3102809038 | N39: -0.3858490954 | O39: =J19/J16 -> 0.2766742333 | P39: -0.3583621798 | Q39: =K19/K16 -> 0.5393648436 | R39: 0.5153426849
B40: Net Acquisition Cost Ratio | C40: =(D22-D24)/D16 -> 0.05716089859 | D40: 0.07828506825 | E40: =(E22-E24)/E16 -> 0.2651981395 | F40: 0.2833710939 | G40: =(F22-F24)/F16 -> 0.1262066298 | H40: 0.09314923251 | I40: =(G22-G24)/G16 -> 0.09229443205 | J40: 0.08667472694 | K40: =(H22-H24)/H16 -> 0.2167834543 | L40: 0.2093517529 | M40: =(I22-I24)/I16 -> 0.2755443733 | N40: 0.2387611622 | O40: =(J22-J24)/J16 -> 0.4703261869 | P40: 0.6841509654 | Q40: =(K22-K24)/K16 -> 0.1882589262 | R40: 0.1994575398
B41: Net Expense Ratio | C41: =D21/D16 -> 0.1627433254 | D41: 0.1221296724 | E41: =E21/E16 -> 0.1354305281 | F41: 0.1489632553 | G41: =F21/F16 -> 0.2668913219 | H41: 0.2545875607 | I41: =G21/G16 -> 0.2387117609 | J41: 0.2349663712 | K41: =H21/H16 -> 0.1441105935 | L41: 0.1570725708 | M41: =I21/I16 -> 0.9190272134 | N41: 0.6970458933 | O41: =J21/J16 -> 0.573919875 | P41: 0.2606582995 | Q41: =K21/K16 -> 0.1597641997 | R41: 0.1563755462
B42: Net Combined Ratio | C42: =C39+C40+C41 -> 0.727456604 | D42: 0.6719593586 | E42: =E39+E40+E41 -> 1.090474568 | F42: 1.107576178 | G42: =G39+G40+G41 -> 0.6786400847 | H42: 0.4160117251 | I42: =I39+I40+I41 -> 0.68216429 | J42: 0.5895170381 | K42: =K41+K40+K39 -> 0.5960815412 | L42: 0.6572295367 | M42: =M41+M40+M39 -> 0.8842906828 | N42: 0.5499579601 | O42: =O41+O40+O39 -> 1.320920295 | P42: 0.586447085 | Q42: =Q41+Q40+Q39 -> 0.8873879694 | R42: 0.8711757709
B44: Σημειώσεις:
B45: 1. Τα πιο πάνω δεδομένα αφορούν μόνο τις εργασίες των εταιρειών-μελών του ΣΑΕΚ στην εγχώρια αγορά. Οι εταιρείες-μέλη του ΣΑΕΚ αντιπροσωπεύουν περίπου το 98% των συνολικών
B46: ασφαλίστρων στην εγχώρια αγορά.
B49: Notes:
B50: 1. The above data reflects to the local insurance business by IAC member firms. IAC members firms represent approx 98% of the local GWP.

Sheet NL Frequencies
B5: NON LIFE TECHNICAL INFORMATION
C7: A&H | D7: MOTOR | E7: M.A.T. | F7: FIRE | G7: LIABILITY | H7: CREDIT | I7: OTHER | J7: YEAR 2022 | K7: YEAR 2021 | L7: % Change
B8: No of Claims Reported | C8: 143751 | D8: 72950 | E8: 204 | F8: 8977 | G8: 2989 | H8: 107 | I8: 164 | J8: =SUM(C8:I8) -> 229142 | K8: 221265 | L8: =J8/K8-1 -> 0.03559984634
B9: No of Policies in-force at 01/01 | C9: 189141 | D9: 624289 | E9: 4393 | F9: 237611 | G9: 54650 | H9: 94 | I9: 2715 | J9: =SUM(C9:I9) -> 1112893 | K9: 1079526 | L9: =J9/K9-1 -> 0.03090893596
B10: No of Policies in-force at 31/12 | C10: 193919 | D10: 641943 | E10: 5457 | F10: 247228 | G10: 58542 | H10: 92 | I10: 2906 | J10: =SUM(C10:I10) -> 1150087 | K10: 1116546 | L10: =J10/K10-1 -> 0.03003996253
B11: Premiums earned | C11: 134966861.2 | D11: 191529843.7 | E11: 3694465.763 | F11: 118958358.9 | G11: 62215078.48 | H11: 148881.3021 | I11: 8225735.511 | J11: =SUM(C11:I11) -> 519739224.8 | K11: 499006487.5 | L11: =J11/K11-1 -> 0.04154803159
B12: Average Premium per Policy | C12: =C11/AVERAGE(C9:C10) -> 704.6773934 | D12: =D11/AVERAGE(D9:D10) -> 302.5193546 | E12: =E11/AVERAGE(E9:E10) -> 750.1453325 | F12: 490.71283 | G12: 1099.284021 | H12: 1600.874216 | I12: 2926.78723 | J12: 459.3405375 | K12: 454.4536677 | L12: =J12/K12-1 -> 0.01075328498
B13: Claim Frequency | D13: =D8/AVERAGE(D9:D10) -> 0.1152237505 | E13: =E8/AVERAGE(E9:E10) -> 0.0414213198 | F13: 0.03703084942 | G13: 0.05281291964 | H13: 1.150537634 | I13: 0.0583526063 | J13: 0.2025134999 | K13: 0.2015097866
B16: Σημειώσεις:
B17: 1. Τα πιο πάνω δεδομένα αφορούν μόνο τις εργασίες των εταιρειών-μελών του ΣΑΕΚ στην εγχώρια αγορά. Οι εταιρείες-μέλη του ΣΑΕΚ αντιπροσωπεύουν περίπου το 98% των συνολικών
B18: ασφαλίστρων στην εγχώρια αγορά.
B21: Notes:
B22: 1. The above data reflects to the local insurance business by IAC member firms. IAC members firms represent approx 98% of the local GWP.

Sheet L Premiums
B6: LIFE GROSS PREMIUMS
B7: Excluding A&H premiums by Life Companies
C9: Life policies Premiums | D9: Group Pension Plans Premiums | E9: TOTAL Premiums YEAR 2022 | F9: TOTAL Premiums YEAR 2021 | G9: % Change | H9: Market Share YEAR 2022 | I9: Market Share YEAR 2021
B10: ALLIANZ | C10: 12282.81 | D10: 0 | E10: =C10+D10 -> 12282.81 | F10: 9984 | G10: 0 | H10: 0 | I10: 0
B11: ALTIUS | C11: 23894062.25 | D11: 0 | E11: =C11+D11 -> 23894062.25 | F11: 21131462.79 | G11: =(E11-F11)/F11 -> 0.1307339438 | H11: =E11/$E$21 -> 0.04594350896 | I11: =F11/$F$21 -> 0.04700993677
B12: ETHNIKI INSURANCE | C12: 15733132.29 | D12: 0 | E12: 15733132.29 | F12: 14375774.07 | G12: 0.0944198353 | H12: 0.03025167075 | I12: 0.03198094883
B13: EUROLIFE | C13: 137710618.1 | D13: 12773369.25 | E13: 150483987.3 | F13: 128590287.7 | G13: 0.1702593559 | H13: 0.2893506489 | I13: 0.2860673375
B14: HELLENIC | C14: 39100828.98 | D14: 0 | E14: 39100828.98 | F14: 26812413.41 | G14: 0.4583106852 | H14: 0.07518308387 | I14: 0.05964801736
B15: CNP CYPRIALIFE | C15: 121033328.8 | D15: 603912 | E15: 121637240.8 | F15: 111562751.3 | G15: 0.09030334325 | H15: 0.2338841174 | I15: =F15/$F$21 -> 0.2481871671
B16: METLIFE | C16: 34440970.94 | D16: 0 | E16: 34440970.94 | F16: 31795774.42 | G16: 0.08319333522 | H16: 0.06622310765 | I16: 0.07073421088
B17: MINERVA | C17: 313709 | D17: 0 | E17: 313709 | F17: 334247 | G17: -0.06144557767 | H17: 0.0006031997447 | I17: 0.0007435798692
B18: PRIME | C18: 26661920.39 | D18: 0 | E18: 26661920.39 | F18: 24960239.18 | G18: 0.06817567723 | H18: 0.05126554728 | I18: 0.05552759302
B19: UNIVERSAL LIFE | C19: 63406378.52 | D19: 2346463.13 | E19: 65752841.65 | F19: 64773277.24 | G19: 0.01512297126 | H19: 0.1264295806 | I19: 0.1440973442
B20: ANCORIA | C20: 2851587.364 | D20: 39192258.49 | E20: 42043845.86 | F20: 25164344.22 | G20: 0.670770575 | H20: 0.08084191747 | I20: 0.05598165363
B21: TOTAL | C21: =SUM(C10:C20) -> 465158819.4 | D21: =SUM(D10:D20) -> 54916002.87 | E21: =SUM(E10:E20) -> 520074822.2 | F21: =SUM(F10:F20) -> 449510555.4 | G21: =(E21-F21)/F21 -> 0.1569802221 | H21: =C21/$C$21 -> 1 | I21: 1
B23: % Change 2021/22 | C23: =E21/F21-1 -> 0.1569802221
B24: % Change 2020/21 | C24: 0.07497330857
B41: LIFE GROSS PREMIUMS
B42: Including A&H premiums by Life Companies
C44: Life policies Premiums | D44: Group Pension Plans Premiums | E44: TOTAL Premiums YEAR 2022 | F44: TOTAL Premiums YEAR 2021 | G44: % Change | H44: Market Share YEAR 2022 | I44: Market Share YEAR 2021
B45: ALLIANZ | C45: 12282.81 | D45: 0 | E45: =D45+C45 -> 12282.81 | F45: 9984 | G45: =(E45-F45)/F45 -> 0.230249399 | H45: =E45/$E$56 -> 1.969553774e-05 | I45: 0
B46: ALTIUS | C46: 23894062.25 | D46: 0 | E46: =D46+C46 -> 23894062.25 | F46: 21131462.79 | G46: =(E46-F46)/F46 -> 0.1307339438 | H46: =E46/$E$56 -> 0.0383142298 | I46: 0.04432377967
B47: ETHNIKI INSURANCE | C47: 15733132.29 | D47: 0 | E47: =D47+C47 -> 15733132.29 | F47: 14375774.07 | G47: =(E47-F47)/F47 -> 0.0944198353 | H47: 0.02522814411 | I47: 0.03206444171
B48: EUROLIFE | C48: 161872599.9 | D48: 12773369.25 | E48: 174645969.2 | F48: 152514041.5 | G48: 0.1451140333 | H48: 0.2800455496 | I48: 0.2700807411
B49: HELLENIC | C49: 39658930.94 | D49: 0 | E49: 39658930.94 | F49: 27402128.93 | G49: 0.4472937863 | H49: 0.06359326335 | I49: 0.06368813708
B50: CNP CYPRIALIFE | C50: 137547189.2 | D50: 603912 | E50: 138151101.2 | F50: 128343289.1 | G50: 0.07641858201 | H50: 0.2215258746 | I50: 0.2552685198
B51: METLIFE | C51: 57178025.63 | D51: 0 | E51: 57178025.63 | F51: 55085702.57 | G51: 0.03798305118 | H51: 0.09168520573 | I51: 0.06797317072
B52: MINERVA | C52: 313709 | D52: 0 | E52: 313709 | F52: 334247 | G52: -0.06144557767 | H52: 0.0005030337072 | I52: 0.0008692653657
B53: PRIME | C53: 26661920.39 | D53: 0 | E53: 26661920.39 | F53: 24960239.18 | G53: 0.06817567723 | H53: 0.04275250202 | I53: 0.06091326733
B54: UNIVERSAL LIFE | C54: 102994710.4 | D54: 2346463.13 | E54: 105341173.6 | F54: 104694759.7 | G54: 0.006174271395 | H54: 0.168915017 | I54: 0.1462675733
B55: ANCORIA | C55: 2851587.364 | D55: 39192258.49 | E55: =D55+C55 -> 42043845.86 | F55: 25164344.22 | G55: 0.670770575 | H55: 0.06741748451 | I55: 0.05851098581
B56: TOTAL | C56: =SUM(C45:C55) -> 568718150.3 | D56: =SUM(D45:D55) -> 54916002.87 | E56: =SUM(E45:E55) -> 623634153.1 | F56: =SUM(F45:F55) -> 554015973 | G56: =(E56-F56)/F56 -> 0.125660962 | H56: =C56/$C$56 -> 1 | I56: =F56/$F$56 -> 1
B58: % Change Semi Annual 2021/22 | C58: =E56/F56-1 -> 0.125660962
B59: % Change Semi Annual 2020/21 | C59: 0.03899260488

Sheet L Premiums incl. A&H
B5: LIFE GROSS PREMIUMS
B6: Including A&H premiums by Life Companies
C8: YEAR 2022 | G8: YEAR 2021
C9: LIFE | D9: A&H | E9: TOTAL | F9: Market Share % | G9: LIFE | H9: A&H | I9: TOTAL | J9: Market Share %
C10: € 000s | D10: € 000s | E10: € 000s | G10: € 000s | H10: € 000s | I10: € 000s
B11: ALLIANZ | C11: 12.28281 | D11: 0 | E11: =C11+D11 -> 12.28281 | F11: =E11/$E$24*100 -> 0.001872642594 | G11: 9.984 | H11: 0 | I11: =H11+G11 -> 9.984 | J11: =I11/$I$24*100 -> 0.001703386015
B12: ALTIUS | C12: 23894.06225 | D12: 0 | E12: =C12+D12 -> 23894.06225 | F12: =E12/$E$24*100 -> 3.642899201 | G12: 21131.46279 | H12: 0 | I12: =H12+G12 -> 21131.46279 | J12: 3.605272254
B13: ETHNIKI INSURANCE | C13: 15733.13229 | D13: 0 | E13: 15733.13229 | F13: =E13/$E$24*100 -> 2.398680242 | G13: 14375.77407 | H13: 0 | I13: 14375.77407 | J13: 2.452673528
B14: EUROLIFE | C14: 150483.9873 | D14: 24161.98187 | E14: 174645.9692 | F14: 26.62660098 | G14: 128590.2877 | H14: 23923.75374 | I14: 152514.0415 | J14: 26.02066159
B15: HELLENIC | C15: 39100.82898 | D15: 558.10196 | E15: 39658.93094 | F15: 6.046417987 | G15: 26812.41341 | H15: 589.71552 | I15: 27402.12893 | J15: 4.675120512
B16: CNP CYPRIALIFE | C16: 121637.2408 | D16: 16513.86046 | E16: 138151.1012 | F16: 21.06257742 | G16: 111562.7513 | H16: 16780.53773 | I16: 128343.2891 | J16: 21.89685133
B17: METLIFE | C17: 34440.97094 | D17: 22737.05469 | E17: 57178.02563 | F17: 8.71738684 | G17: 31795.77442 | H17: 23289.92815 | I17: 55085.70257 | J17: 9.398258751
B18: MINERVA | C18: 313.709 | D18: 0 | E18: 313.709 | F18: 0.04782821159 | G18: 334.247 | H18: 0 | I18: 334.247 | J18: 0.05702640878
B19: PRIME | C19: 26661.92039 | D19: 0 | E19: 26661.92039 | F19: 4.064888065 | G19: 24960.23918 | H19: 0 | I19: 24960.23918 | J19: 4.258505844
B20: UNIVERSAL LIFE | C20: 65752.84165 | D20: 39588.33191 | E20: =C20+D20 -> 105341.1736 | F20: 16.06036148 | G20: 64773.27724 | H20: 39921.48246 | I20: 104694.7597 | J20: 17.86213837
B21: ANCORIA | C21: 42043.84586 | D21: 0 | E21: =C21+D21 -> 42043.84586 | F21: 6.410023161 | G21: 25164.34422 | H21: 0 | I21: 25164.34422 | J21: =I21/$I$24*100 -> 4.293328526
B22: LIFE COMPANIES | C22: =SUM(C11:C21) -> 520074.8222 | D22: =SUM(D11:D21) -> 103559.3309 | E22: =SUM(E11:E21) -> 623634.1531 | F22: =SUM(F12:F21) -> 95.07766359 | G22: =SUM(G11:G21) -> 449510.5554 | H22: =SUM(H11:H21) -> 104505.4176 | I22: =H22+G22 -> 554015.973 | J22: =SUM(J11:J21) -> 94.52154049
B23: NON LIFE COMPANIES | C23: - | D23: 32273.70868 | E23: =D23 -> 32273.70868 | F23: =E23/$E$24*100 -> 4.920463767 | G23: - | H23: 32110.71315 | I23: =H23 -> 32110.71315 | J23: =I23/I24*100 -> 5.478459505
B24: TOTAL | C24: =C22 -> 520074.8222 | D24: =D22+D23 -> 135833.0396 | E24: =C24+D24 -> 655907.8618 | F24: =SUM(F22:F23) -> 99.99812736 | G24: =G22 -> 449510.5554 | H24: =H22+H23 -> 136616.1307 | I24: =G24+H24 -> 586126.6861 | J24: =J22+J23 -> 100

Sheet L Claims
B6: LIFE GROSS CLAIMS INCURRED
C8: DEATHS | E8: MATURITIES | G8: SURRENDERS | I8: OTHER | K8: TOTAL
C9: No. of claims | D9: Amount payable | E9: No. of claims | F9: Amount payable | G9: No. of claims | H9: Amount payable | I9: No. of claims | J9: Amount payable | K9: No. of claims | L9: Amount payable
B10: ALLIANZ | C10: 72 | D10: 3696464.98 | E10: 0 | F10: 0 | G10: 0 | H10: 0 | I10: 0 | J10: 0 | K10: =I10+G10+E10+C10 -> 72 | L10: =J10+H10+F10+D10 -> 3696464.98
B11: ALTIUS | C11: 47 | D11: 4080948.66 | E11: 21 | F11: 413284.75 | G11: 215 | H11: 3699577.33 | I11: 778 | J11: 3723919.663 | K11: =I11+G11+E11+C11 -> 1061 | L11: 11917730.4
B12: ETHNIKI | C12: 1 | D12: 10000 | E12: 34 | F12: 328457.17 | G12: 593 | H12: 3258261.77 | I12: 316 | J12: 263446 | K12: 944 | L12: 3860164.94
B13: EUROLIFE | C13: 106 | D13: 8560670.9 | E13: 726 | F13: 5644685.17 | G13: 2764 | H13: 51920433.53 | I13: 143 | J13: 2723238.56 | K13: 3739 | L13: 68849028.16
B14: PRIME | C14: 23 | D14: 496335 | E14: 102 | F14: 679303.38 | G14: 724 | H14: 5981941.99 | I14: 1791 | J14: 3309194.36 | K14: 2640 | L14: 10466774.73
B15: CYPRIALIFE | C15: 64 | D15: 5602784.11 | E15: 595 | F15: 7396030.86 | G15: 2316 | H15: 32779144.06 | I15: 1120 | J15: 9493437.54 | K15: 4095 | L15: 55271396.57
B16: HELLENIC | C16: 121 | D16: 8562411.43 | E16: 61 | F16: 681395.93 | G16: 179 | H16: 1227569.11 | I16: 0 | J16: 0 | K16: 361 | L16: 10471376.47
B17: METLIFE | C17: 54 | D17: 1847528.47 | E17: 329 | F17: 8926645.7 | G17: 748 | H17: 8859987.7 | I17: 39 | J17: 11299.51 | K17: 1170 | L17: 19645461.38
B18: MINERVA | C18: 3 | D18: 101259.06 | E18: 5 | F18: 249375.52 | G18: 22 | H18: 139185.62 | I18: 32 | J18: 15672.6 | K18: 62 | L18: 505492.8
B19: UNIVERSAL | C19: 73 | D19: 3594854.8 | E19: 647 | F19: 12083485.11 | G19: 1810 | H19: 18534147.33 | I19: 26 | J19: 1006126.16 | K19: 2556 | L19: =J19+H19+F19+D19 -> 35218613.4
B20: ANCORIA | C20: 7 | D20: 745908.7425 | E20: 0 | F20: 0 | G20: 825 | H20: 10645430.99 | I20: 0 | J20: 0 | K20: 832 | L20: 11391339.73
B21: TOTAL YEAR 2022 | C21: =SUM(C10:C20) -> 571 | D21: =SUM(D10:D20) -> 37299166.15 | E21: 2520 | F21: 36402663.59 | G21: 10196 | H21: 137045679.4 | I21: 4245 | J21: 20546334.39 | K21: 17532 | L21: 231293843.6
B22: TOTAL YEAR 2021 | C22: 624 | D22: 38285526.98 | E22: 2189 | F22: 37966278.39 | G22: 8943.65 | H22: 117301083.4 | I22: 4207 | J22: 15088875.95 | K22: =I22+G22+E22+C22 -> 15963.65 | L22: =J22+H22+F22+D22 -> 208641764.7
B23: % Change | C23: =C21/C22-1 -> -0.08493589744 | D23: =D21/D22-1 -> -0.02576328194 | E23: 0.1512105984 | F23: -0.04118430529 | G23: 0.1400267229 | H23: 0.168324072 | I23: 0.009032564773 | J23: 0.3616875416 | K23: 0.09824507553 | L23: 0.1085692448

Sheet L New Business
B6: ANALYSIS OF LIFE NEW BUSINESS
B7: INDIVIDUAL POLICIES
C9: REGULAR PREMIUMS | G9: SINGLE PREMIUMS | I9: TOTAL NEW BUSINESS PREMIUMS
C10: Unit Linked | E10: Other
C11: Number of contracts | D11: Annual Premiums | E11: Number of contracts | F11: Annual Premiums | G11: Number of contracts | H11: Single Premiums
B12: ALLIANZ | C12: 0 | D12: 0 | E12: 0 | F12: 0 | G12: 0 | H12: 0 | I12: =H12+F12+D12 -> 0
B13: ALTIUS | C13: 1765 | D13: 4572903.98 | E13: 611 | F13: 1253832.51 | G13: 0 | H13: 1123394.03 | I13: =H13+F13+D13 -> 6950130.52
B14: ETHNIKI | C14: 1075 | D14: 2117845.47 | E14: 1709 | F14: 300061.86 | G14: 0 | H14: 1911200.94 | I14: 4329108.27
B15: EUROLIFE | C15: 7792 | D15: 16725129.41 | E15: 3860 | F15: 1841894.8 | G15: 168 | H15: 12260712 | I15: 30827736.21
B16: PRIME | C16: 1653 | D16: 3109785 | E16: 484 | F16: 328836 | G16: 0 | H16: 0 | I16: 3438621
B17: CNP CYPRIALIFE | C17: 5806 | D17: 18744382 | E17: 1674 | F17: 1423069 | G17: 59 | H17: 5213338 | I17: 25380789
B18: HELLENIC | C18: 1421 | D18: 1179862.94 | E18: 9371 | F18: 1595705.037 | G18: 295 | H18: 12142806.15 | I18: 14918374.13
B19: METLIFE | C19: 2112 | D19: 3604074.268 | E19: 678 | F19: 382023.4955 | G19: 108 | H19: 3653796.75 | I19: 7639894.513
B20: MINERVA | C20: 0 | D20: 0 | E20: 0 | F20: 0 | G20: 0 | H20: 0 | I20: 0
B21: UNIVERSAL LIFE | C21: 3054 | D21: 7635681.25 | E21: 604 | F21: 692862.23 | G21: 183 | H21: 7865039.06 | I21: 16193582.54
B22: ANCORIA | C22: 0 | D22: 0 | E22: 0 | F22: 0 | G22: 223 | H22: 2851587.364 | I22: 2851587.364
B23: TOTAL YEAR 2022 | C23: =SUM(C12:C22) -> 24678 | D23: 57689664.32 | E23: 18991 | F23: 7818284.933 | G23: 1036 | H23: 47021874.29 | I23: =H23+F23+D23 -> 112529823.5
B24: TOTAL YEAR 2021 | C24: 25303 | D24: 57013529.46 | E24: 11788 | F24: 6711244.181 | G24: 1036 | H24: 43634246.77 | I24: 107359020.4
B25: % Change | C25: =C23/C24-1 -> -0.02470062838 | D25: =D23/D24-1 -> 0.01185920016 | E25: 0.6110451306 | F25: 0.1649531326 | G25: 0 | H25: 0.07763689696 | I25: 0.04816365788

Sheet L In Force Business
C6: LIFE MOVEMENTS OF BUSINESS IN FORCE
D8: ALLIANZ | E8: ALTIUS | F8: ETHNIKI | G8: EUROLIFE | H8: PRIME | I8: CNP CYPRIALIFE | J8: HELLENIC | K8: METLIFE | L8: MINERVA | M8: UNIVERSAL LIFE | N8: ANCORIA | O8: YEAR 2022 | P8: YEAR 2021 | Q8: % Change
B9: INDIVIDUAL | C9: In force at start of Period
C10: Number of contracts | D10: 100 | E10: 12199 | F10: 9458 | G10: 90395 | H10: 18430 | I10: 59689 | J10: 120037 | K10: 27142 | L10: 487 | M10: 39817 | N10: 441 | O10: =SUM(D10:N10) -> 378195 | P10: 354294 | Q10: =O10/P10-1 -> 0.06746092228
C11: Annual premiums | D11: 9984 | E11: 16329575.54 | F11: 12957889 | G11: 106922683.7 | H11: 24880307.12 | I11: 107463137 | J11: 26223705 | K11: 27956298.9 | L11: 333773.3 | M11: 50091038 | N11: 1615545.535 | O11: =SUM(D11:N11) -> 374783937.1 | P11: 334841923.2 | Q11: =O11/P11-1 -> 0.1192861798
C12: New Business plus Reinst & alterations
C13: Number of contracts | D13: 0 | E13: 2515 | F13: 878 | G13: 12020 | H13: 2237 | I13: 7550 | J13: 11087 | K13: 2927 | L13: 1 | M13: 4075 | N13: 59 | O13: =SUM(D13:N13) -> 43349 | P13: 43719 | Q13: =O13/P13-1 -> -0.008463139596
C14: Annual premiums | D14: 0 | E14: 5826736.49 | F14: 2516786 | G14: 18567024.21 | H14: 3636698.46 | I14: 20181662 | J14: 14918374.13 | K14: 4015185.773 | L14: 3971.27 | M14: 8999011.33 | N14: 1236041.829 | O14: =SUM(D14:N14) -> 79901491.49 | P14: 66956857.51 | Q14: =O14/P14-1 -> 0.1933279795
C15: Deaths and other insured events
C16: Number of contracts | D16: 0 | E16: 11 | F16: 1 | G16: 110 | H16: 23 | I16: 64 | J16: 201 | K16: 24 | L16: 3 | M16: 78 | N16: 3 | O16: =SUM(D16:N16) -> 518 | P16: 573 | Q16: =O16/P16-1 -> -0.09598603839
C17: Annual premiums | D17: 0 | E17: 19567.79 | F17: 763.68 | G17: 99857.87 | H17: 70242.46 | I17: 93090 | J17: 1299354 | K17: 24622.50384 | L17: 2696.16 | M17: 112174.91 | N17: 0 | O17: =SUM(D17:N17) -> 1722369.374 | P17: 483680.24 | Q17: =O17/P17-1 -> 2.560967001
C18: Maturities and Surrenders
C19: Number of contracts | D19: 0 | E19: 256 | F19: 178 | G19: 3538 | H19: 826 | I19: 2911 | J19: 240 | K19: 1112 | L19: 31 | M19: 2433 | N19: 31 | O19: =SUM(D19:N19) -> 11556 | P19: 11582 | Q19: =O19/P19-1 -> -0.002244862718
C20: Annual premiums | D20: 0 | E20: 2252642.806 | F20: 193126 | G20: 3529705.09 | H20: 927281.18 | I20: 4342008 | J20: 1908905.04 | K20: 1106372.565 | L20: 16635.83 | M20: 2563294.6 | N20: 0 | O20: =SUM(D20:N20) -> 16839971.11 | P20: 17143431.99 | Q20: =O20/P20-1 -> -0.01770129094
C21: Lapses-Expiries
C22: Number of contracts | D22: 0 | E22: 740 | F22: -185 | G22: 2041 | H22: 621 | I22: 964 | J22: 0 | K22: 962 | L22: 5 | M22: 877 | N22: 0 | O22: =SUM(D22:N22) -> 6025 | P22: 6354 | Q22: =O22/P22-1 -> -0.0517784073
C23: Annual premiums | D23: 0 | E23: 1150455.62 | F23: 88887 | G23: 1167860.82 | H23: 593274.47 | I23: 863156 | J23: 0 | K23: 621908.5612 | L23: 3809.34 | M23: 3304027.8 | N23: 0 | O23: =SUM(D23:N23) -> 7793379.612 | P23: 7862796.869 | Q23: =O23/P23-1 -> -0.00882857057
C24: In force at end of period
C25: Number of contracts | D25: 77 | E25: 13707 | F25: 10342 | G25: 96726 | H25: 19197 | I25: 63300 | J25: 130683 | K25: 27972 | L25: 449 | M25: 40504 | N25: 466 | O25: =SUM(D25:N25) -> 403423 | P25: 379490 | Q25: =O25/P25-1 -> 0.06306622045
C26: Annual premiums | D26: 12693.78 | E26: 18733645.81 | F26: 15191898.32 | G26: 120692284.1 | H26: 26926207.47 | I26: 122346545 | J26: 37933820.58 | K26: 30218609.01 | L26: 314603.24 | M26: 53110552.02 | N26: 2851587.364 | O26: =SUM(D26:N26) -> 428332446.7 | P26: 376302272.6 | Q26: =O26/P26-1 -> 0.1382669677
B27: GROUP | C27: In force at start of Period
C28: Number of policies | D28: 0 | E28: 59 | F28: 15 | G28: 66 | H28: 4 | I28: 150 | J28: 15 | K28: 371 | L28: 0 | M28: 83 | N28: 228 | O28: =SUM(D28:N28) -> 991 | P28: 971 | Q28: =O28/P28-1 -> 0.02059732235
C29: Annual premiums | D29: 0 | E29: 5329260.766 | F29: 353263 | G29: 8744495 | H29: 29237.52 | I29: 5962234 | J29: 1301600 | K29: 1341543.92 | L29: 0 | M29: 2501854.09 | N29: 22030160.26 | O29: =SUM(D29:N29) -> 47593648.56 | P29: 43188745.35 | Q29: =O29/P29-1 -> 0.1019919236
C30: In force at end of report period
C31: Number of policies | D31: 0 | E31: 55 | F31: 10 | G31: 69 | H31: 4 | I31: 160 | J31: 15 | K31: 367 | L31: 0 | M31: 81 | N31: 287 | O31: =SUM(D31:N31) -> 1048 | P31: 1002 | Q31: =O31/P31-1 -> 0.04590818363
C32: Annual premiums | D32: 0 | E32: 5464221.567 | F32: 189062.46 | G32: 9046911 | H32: 30900.25 | I32: 6799146 | J32: 1211651.83 | K32: 1430600.37 | L32: 0 | M32: 2980926.11 | N32: 39192258.49 | O32: =SUM(D32:N32) -> 66345678.08 | P32: 48386439.65 | Q32: =O32/P32-1 -> 0.3711626348

Sheet L Technical Account
B6: LIFE TECHNICAL ACCOUNTS
C8: ALTIUS | D8: ETHNIKI | E8: EUROLIFE | F8: PRIME | G8: CNP CYPRIALFE | H8: HELLENIC | I8: METLIFE | J8: MINERVA | K8: UNIVERSAL LIFE | L8: ANCORIA | M8: YEAR 2022 | N8: YEAR 2021
B9: Premiums
B10: Gross Premiums | C10: 23894062.25 | D10: 15733132.29 | E10: 137710618.1 | F10: 26661920.39 | G10: 121637240.8 | H10: 39100828.98 | I10: 34440970.94 | J10: 313709 | K10: 63406378.52 | L10: 42043845.86 | M10: =SUM(C10:L10) -> 504942707 | N10: 443476082.1
B11: Reinsurance | C11: 4169741.611 | D11: 1515692.12 | E11: 18258344.4 | F11: 3050167.93 | G11: 10569365.23 | H11: 9801412.336 | I11: 0 | J11: 60137 | K11: 4337149.16 | L11: 0 | M11: =SUM(C11:L11) -> 51762009.78 | N11: 51790060.18
B12: Net Premiums Earned | C12: 19724320.64 | D12: 14217440.17 | E12: 119452273.7 | F12: 23611752.46 | G12: 111067875.5 | H12: 29299416.64 | I12: 34440970.94 | J12: 253572 | K12: 59069229.36 | L12: 42043845.86 | M12: =SUM(C12:L12) -> 453180697.3 | N12: 391686021.9
B13: Claims
B14: Gross Claims incured | C14: 10344614.8 | D14: 3860164.94 | E14: 68849028.16 | F14: 3805529.36 | G14: 55271396.57 | H14: 9382819.63 | I14: 19876950.38 | J14: 505494 | K14: 34599848.44 | L14: 11391339.73 | M14: =SUM(C14:L14) -> 217887186 | N14: 200836376.2
B15: Reinsurers' share of Claims | C15: 3516004.467 | D15: 90191.28 | E15: 6163693.1 | F15: 1248238.48 | G15: 4080187.63 | H15: 7994471.33 | I15: 0 | J15: 22449 | K15: 1148812.492 | L15: 0 | M15: =SUM(C15:L15) -> 24264047.78 | N15: 24374623
B16: Net Claims Incurred | C16: 6828610.333 | D16: 3769973.66 | E16: 62685335.06 | F16: 2557290.88 | G16: 51191208.94 | H16: 1388348.3 | I16: 19876950.38 | J16: 483045 | K16: 33451035.95 | L16: 11391339.73 | M16: =SUM(C16:L16) -> 193623138.2 | N16: 176461753.2
B17: Expenses
B18: Commissions - Acquisition | C18: 2516143.82 | D18: 1175512.459 | E18: 15680020.57 | F18: 2394043.69 | G18: 9583413.227 | H18: 533226.21 | I18: 2628084.85 | J18: 0 | K18: 3896180.87 | L18: 0 | M18: =SUM(C18:L18) -> 38406625.69 | N18: 34901495.19
B19: Commissions - Renewal | C19: 798404.8668 | D19: 767482.0921 | E19: 5002215.415 | F19: 1554159.35 | G19: 3981486.617 | H19: 2101261.32 | I19: 997614.39 | J19: 10940 | K19: 1526381.16 | L19: 0 | M19: 16739945.21 | N19: 17497051
B20: Management expenses - Acquisition | C20: 2036228.658 | D20: 1441038.026 | E20: 6268394.706 | F20: 1382672.48 | G20: 6527617.005 | H20: 573856.5819 | I20: 3669387.528 | J20: 0 | K20: 3535626.511 | L20: 1177314.046 | M20: 26612135.54 | N20: 22344585.91
B21: Management expenses - Renewal | C21: 1503416.784 | D21: 1455523.233 | E21: 7209806.401 | F21: 2544116.696 | G21: 7978198.562 | H21: 0 | I21: 5530581.345 | J21: 60513 | K21: 4234981.206 | L21: 1058149.083 | M21: 31575286.31 | N21: 28111104.84
B22: Other Admin/Management Expenses | C22: 0 | D22: 0 | E22: 0 | F22: 0 | G22: 0 | H22: 3635266.658 | I22: 0 | J22: 0 | K22: 0 | L22: 0 | M22: 3635266.658 | N22: -199444.8806
B23: Reinsurance Commission | C23: 460666.436 | D23: 974897.81 | E23: 3135270.2 | F23: 1360123.49 | G23: 1928291.596 | H23: 0 | I23: -300861.98 | J23: 0 | K23: 1235321.74 | L23: 0 | M23: 8793709.292 | N23: 8614101.742
B24: Net Expenses | C24: 6393527.693 | D24: 3864658 | E24: 31025166.89 | F24: 6514868.725 | G24: 26142423.81 | H24: 6843610.77 | I24: 13126530.09 | J24: 71453 | K24: 11957848.01 | L24: 2235463.129 | M24: =SUM(C24:L24) -> 108175550.1 | N24: 94040690.32
B25: Investment Income
B26: Investment Income for Life business | C26: 611021.9002 | D26: 1080872.15 | E26: 2417392.82 | F26: -3368663.8 | G26: 27389.98111 | H26: -2353275.158 | I26: 0 | J26: 44959 | K26: 760846.33 | L26: 528397.5735 | M26: =SUM(C26:L26) -> -251059.2036 | N26: 6995701.337
B27: Increase (decrease) in value of Life assets other than those in internal linked funds | C27: -1390314.87 | D27: -4663495.15 | E27: -10931436.9 | F27: -441883.06 | G27: 968166.6579 | H27: 0 | I27: 0 | J27: 0 | K27: -4182294.91 | L27: 28094.50382 | M27: =SUM(C27:L27) -> -20613163.73 | N27: -7302298.333
B28: Increase (decrease) in value of Life assets in internal linked funds | C28: -5264703.15 | D28: -8271556.31 | E28: -40894279.83 | F28: -2926780.74 | G28: -40359253.32 | H28: -2207049.44 | I28: 0 | J28: 25641 | K28: -18500181.85 | L28: -11362168.15 | M28: =SUM(C28:L28) -> -129760331.8 | N28: 75196588.5
B29: Other Items
B30: Other Income | C30: 0 | D30: 9465 | E30: 4633663.02 | F30: 33656.67 | G30: 0 | H30: 261062.09 | I30: 0 | J30: 0 | K30: 0 | L30: 1600882.755 | M30: =SUM(C30:L30) -> 6538729.535 | N30: 3485099.612
B31: Other Expenditure | C31: -40.23 | D31: -9642 | E31: 0 | F31: -141845.0009 | G31: 0 | H31: 0 | I31: 0 | J31: 0 | K31: 0 | L31: 12097788.7 | M31: =SUM(C31:L31) -> 11946261.47 | N31: 1548674.332
B32: Underwiting Profit
B33: Underwriting Profit (before tax) | C33: 1999115.663 | D33: 1124000 | E33: 39562364.29 | F33: 2476619.495 | G33: 16107286.73 | H33: 12417062.96 | I33: 0 | J33: 58921 | K33: 2741566.523 | L33: 138647.6123 | M33: =SUM(C33:L33) -> 76625584.28 | N33: 28818099.62
B34: Underwriting Profit (after tax) | C34: 1999115.663 | D34: 888003 | E34: 32834197.69 | F34: 2076690.665 | G34: 13200556.27 | H34: 11170449.99 | I34: 0 | J34: 54215.365 | K34: 1759761.585 | L34: 138647.6123 | M34: =SUM(C34:L34) -> 64121637.84 | N34: 22314010.45

Sheet International Business
B6: INTERNATIONAL PREMIUMS WRITTEN
C8: LIFE | D8: A&H | E8: MOTOR | F8: MAT | G8: FIRE | H8: LIABILITY | I8: CREDIT | J8: MISC | K8: TOTAL YEAR 2022 | L8: TOTAL YEAR 2021 | M8: Growth (%)
B10: ALTIUS | C10: 0 | D10: 0 | E10: 0 | F10: 0 | G10: 0 | H10: 0 | I10: 537219.183 | J10: 0 | K10: =SUM(C10:J10) -> 537219.183 | L10: 0 | M10: =IFERROR(K10/L10-1,0) -> 0
B11: AMERICAN STEAMSHIP OWNERS MARINE INSURANCE COMPANY (EUROPE) LTD | C11: 0 | D11: 0 | E11: 0 | F11: 13240133.13 | G11: 0 | H11: 0 | I11: 0 | J11: 0 | K11: =SUM(C11:J11) -> 13240133.13 | L11: 12506851.49 | M11: =K11/L11-1 -> 0.05863039484
B12: ANCORIA | C12: 3343159.016 | D12: 0 | E12: 0 | F12: 0 | G12: 0 | H12: 0 | I12: 0 | J12: 0 | K12: 3343159.016 | L12: 2212858.364 | M12: =K12/L12-1 -> 0.5107876175
B13: CNP ASFALISTIKI | C13: 0 | D13: 0 | E13: 0 | F13: 0 | G13: 64574.13 | H13: 7521.46 | I13: 0 | J13: 11667.06 | K13: 83762.65 | L13: 67408.8 | M13: 0.2426070483
B14: EUROLIFE | C14: 0 | D14: 0 | E14: 0 | F14: 0 | G14: 0 | H14: 0 | I14: 0 | J14: 0 | K14: 0 | L14: 0 | M14: 0
B15: MEDLIFE | C15: 37033457.62 | D15: 0 | E15: 0 | F15: 0 | G15: 0 | H15: 0 | I15: 0 | J15: 0 | K15: 37033457.62 | L15: 35911415.82 | M15: 0.03124471076
B16: PRIME | C16: 0 | D16: 609785.264 | E16: 0 | F16: 0 | G16: 0 | H16: 0 | I16: 0 | J16: 0 | K16: 609785.264 | L16: 768296.859 | M16: -0.2063155578
B17: Total Year 2022 | C17: =SUM(C10:C16) -> 40376616.64 | D17: =SUM(D10:D16) -> 609785.264 | E17: 0 | F17: 13240133.13 | G17: 64574.13 | H17: 7521.46 | I17: 537219.183 | J17: 11667.06 | K17: =SUM(K11:K16) -> 54310297.69 | L17: 51466831.34 | M17: 0.0552485217
B18: Total Year 2021 | C18: 38124274.19 | D18: 768915.411 | E18: -1310.39 | F18: 12507543.33 | G18: 47775.15 | H18: 8561.05 | I18: 0 | J18: 11072.6 | K18: =SUM(C18:J18) -> 51466831.34
B19: Growth (%) | C19: =C17/C18-1 -> 0.05907895953 | D19: =D17/D18-1 -> -0.2069540352 | E19: -1 | F19: 0.05857183812 | G19: 0.3516258976 | H19: -0.1214325346 | I19: =IFERROR(I17/I18-1,0) -> 0 | J19: 0.05368748081 | K19: =K17/K18-1 -> 0.0552485217
B21: Σημείωση:
B22: Τα πιο πάνω δεδομένα αφορούν διεθνής εργασίες των εταιρειών-μελών του ΣΑΕΚ.
B24: Note:
B25: The above data reflects to the International insurance business by IAC member firms.
